Cogmind - Beta 13 @@@ ROGUE MODE // 2024.07.06 @ 16:46:47 Player: SHADOWELITE7 Result: Destroyed by Y-45 Defender with Beam Rifle Performance ------------- Evolutions (1) 500 Regions Visited (3) 600 Robots Destroyed (13) 65 Value Destroyed (435) 435 Prototype IDs (0) 0 Alien Tech Used (0) 0 Bonus (92) 92 TOTAL SCORE: 1692 Bonus ------- Follower Combat Kills 92 Cogmind --------- Core Integrity 0/400 Matter 300/300 Energy 99/100 System Corruption 0% Temperature Cool (15) Movement Core (350) Ox6 Location -9/Materials Parts ------- > --- POWER (1) -------- (None) > --- PROPULSION (2) --- (None) > --- UTILITY (2) ------ Large Storage Unit > --- WEAPON (4) ------- (None) > --- INVENTORY (15) --- Improved Heat Sink Large Storage Unit High-capacity Battery (250) Terrain Scanner High-powered Tractor Beam Particle Gun Grenade Launcher Welding Torch Peak State ------------ > --- POWER ------------ Light Ion Engine > --- PROPULSION ------- Carbon-fiber Leg > --- UTILITY ---------- Small Storage Unit Improved Terrain Scan Processor > --- WEAPON ----------- Assault Cannon Assault Cannon Assault Cannon Assault Cannon > --- INVENTORY -------- Improved Heat Sink High-capacity Battery Terrain Scanner Grenade Launcher Signal Generator [Rating: 21] Favorites ----------- Power Ion Engine Engine Ion Engine Propulsion Light Treads Treads Light Treads Leg Carbon-fiber Leg Flight Unit Flight Unit Utility Small Storage Unit Device Terrain Scanner Storage Small Storage Unit Processor Improved Terrain Scan Processor Weapon Assault Cannon Energy Gun Small Laser Ballistic Gun Light Assault Rifle Ballistic Cannon Assault Cannon Launcher Grenade Launcher Build | -11 -10 -10 -9 ------- Run | Yrd Mat Min Mat Slots Evolved 2 | . . . 2 Power . | . . . . Propulsion . | . . . . Utility . | . . . . Weapon 2 | . . . 2 Parts Attached 24 | 5 4 7 8 Power 2 | 1 . 1 . Engine 2 | 1 . 1 . Core . | . . . . Reactor . | . . . . Propulsion 6 | 2 . 3 1 Treads 2 | 2 . . . Leg 2 | . . 1 1 Wheel . | . . . . Hover . | . . . . Flight 2 | . . 2 . Utility 6 | 1 1 1 3 Device 2 | . 1 1 . Storage 3 | 1 . . 2 Processor 1 | . . . 1 Hackware . | . . . . Protection . | . . . . Artifact . | . . . . Weapon 10 | 1 3 2 4 Energy Gun 1 | . 1 . . Energy Cannon . | . . . . Ballistic Gun 3 | 1 1 1 . Ballistic Cannon 4 | . . . 4 Launcher 2 | . 1 1 . Special Weapon . | . . . . Impact Weapon . | . . . . Slashing Weapon . | . . . . Piercing Weapon . | . . . . Special Melee Weapon . | . . . . Unidentified Prototypes . | . . . . Parts Lost 6 | . 1 2 3 Power 2 | . . 1 1 Propulsion 1 | . 1 . . Utility 1 | . . . 1 Weapon 2 | . . 1 1 Highest Loss Streak 3 | . 1 1 3 To Critical Strikes . | . . . . Average Slot Usage (%) 82 | . 90 73 76 Engine 12 | . 14 12 9 Treads 14 | . 26 10 . Leg 3 | . . . 9 Flight 1 | . . 6 . Device 4 | . 7 5 . Storage 13 | . 14 14 11 Processor 3 | . . . 9 Energy Gun 5 | . 11 3 . Ballistic Gun 9 | . 14 14 . Ballistic Cannon 12 | . . . 35 Launcher 1 | . 1 4 . Naked Turns . | . . . . Heaviest Build 43 | 12 15 15 43 Greatest Support 40 | 40 40 20 15 Greatest Overweight (x) 10 | 1 . 2 10 Average Overweight (x) . | . . . 1 Largest Inventory Capacity 15 | 8 8 8 15 Average Capacity 8 | 6 8 8 11 Most Carried 9 | 4 4 7 9 Average Carried 4 | 1 2 5 6 Final Capacity 15 | 8 8 8 15 Final Carried 8 | 2 4 6 8 Class Distribution -------------------- 74% | Mutant 25% | Gunner Dominant Class ---------------- Mutant | -10/Materials Mutant | -10/Mines Gunner | -9/Materials Resources | -11 -10 -10 -9 ----------- Run | Yrd Mat Min Mat Matter Collected 629 | 210 137 105 177 Remotely . | . . . . Salvage Created 358 | . 236 57 65 Parts 22 | . 13 4 5 Haulers Intercepted . | . . . . Recyclers Shooed . | . . . . Parts Field Recycled . | . . . . Retrieved Matter . | . . . . Parts Self-Destructed . | . . . . Prevented . | . . . . Kills | -11 -10 -10 -9 ------- Run | Yrd Mat Min Mat Combat Hostiles Destroyed 11 | . 6 3 2 Guns 7 | . 5 2 . Cannons 2 | . . . 2 AOE 2 | . 1 1 . Classes Destroyed 5 | . 3 1 1 Builder 1 | . 1 . . Watcher 1 | . 1 . . Swarmer 2 | . . 2 . Grunt 7 | . 6 1 . Sentry 2 | . . . 2 Best Kill Streak 4 | . 4 2 1 Combat Bots Only 4 | . 4 2 1 Max Kills in Single Turn 1 | . 1 1 1 Gunslinging . | . . . . Exploded 1 | . 1 1 . Melee . | . . . . Uniques/NPCs Destroyed . | . . . . Combat | -11 -10 -10 -9 -------- Run | Yrd Mat Min Mat Hostile Shots Fired 123 | . 40 18 65 Missed 31 | . 11 6 14 Damage Taken 1477 | . 444 176 857 Core 516 | . 63 45 408 Absorbed by Shields . | . . . . Core Remaining (%) 78 | 100 . 56 . Volleys Fired 44 | . 27 8 9 Largest 4 | . 2 2 4 Hottest 176 | . 70 60 176 Shots Fired 80 | . 51 11 18 Gun 55 | . 46 9 . Cannon 18 | . . . 18 Launcher 7 | . 5 2 . Special . | . . . . Kinetic 61 | . 35 8 18 Thermal 12 | . 11 1 . Explosive 7 | . 5 2 . Electromagnetic . | . . . . Robot Hit Streak 15 | . 15 13 4 Robot Miss Streak 2 | . 2 1 2 Penetration Max . | . . . . Secondary Targets 1 | . 1 . . Max Gunslinging Chain 1 | . 1 . . Shots Hit Robots 60 | . 41 8 11 Core Hits 25 | . 17 5 3 Critical Kills 1 | . . 1 . Critical Parts Destroyed . | . . . . Critical Strikes 1 | . . 1 . Destroy 1 | . . 1 . Melee Attacks . | . . . . Impact . | . . . . Slashing . | . . . . Piercing . | . . . . Sneak Attacks . | . . . . Combat Hostiles . | . . . . Follow-up Attacks . | . . . . Damage Inflicted 1047 | . 623 171 253 Guns 465 | . 397 68 . Cannons 250 | . . . 250 Explosions 329 | . 226 103 . Melee . | . . . . Ramming 3 | . . . 3 Kinetic 594 | . 286 58 250 Thermal 121 | . 111 10 . Explosive 287 | . 184 103 . Electromagnetic 42 | . 42 . . Impact . | . . . . Slashing . | . . . . Piercing . | . . . . Highest Corruption . | . . . . Average Corruption . | . . . . Corruption Purged . | . . . . Corruption Blocked . | . . . . Overload Shots . | . . . . Overflow Damage 47 | . . 47 . Projectiles . | . . . . Explosions 47 | . . 47 . Melee . | . . . . Knockbacks 1 | . . . 1 Impact . | . . . . Kinetic 1 | . . . 1 Secondary . | . . . . Self-Inflicted Damage 84 | . 60 24 . Shots 2 | . 1 1 . Rammed 4 | . . . 4 Targets Rammed 4 | . . . 4 Kicked . | . . . . Crushed . | . . . . Highest Temperature 328 | . 93 29 328 Average Temperature 63 | . 27 14 148 Received Heat Transfer 639 | . 234 69 336 Siege Activations . | . . . . Robots Corrupted . | . . . . Combat Hostiles . | . . . . Parts Fried . | . . . . Impact Corruptions . | . . . . Robots Melted . | . . . . Combat Hostiles . | . . . . Parts Melted . | . . . . Heat Transferred 275 | . 250 25 . Parts Sabotaged . | . . . . Parts Stolen . | . . . . Parts Stripped . | . . . . Power Chain Reactions . | . . . . Alert | -11 -10 -10 -9 ------- Run | Yrd Mat Min Mat Peak Influence 183 | . 183 169 147 Initial 65 | . . 23 65 Average 82 | . 67 105 101 Maximum Alert Level . | . . . . Low Security (%) 100 | 100 100 100 100 Level 1 . | . . . . Level 2 . | . . . . Level 3 . | . . . . Level 4 . | . . . . Level 5 . | . . . . High Security . | . . . . Max Security . | . . . . Squads Dispatched 4 | . . 1 3 Investigation . | . . . . Extermination . | . . . . Reinforcement 2 | . . . 2 Assault 2 | . . 1 1 Garrison . | . . . . Intercept . | . . . . Searches Triggered . | . . . . Construction Impeded 1 | . . . 1 Haulers Reinforced . | . . . . Active Scanning Responses . | . . . . Cargo Convoy Interrupts . | . . . . Stealth | -11 -10 -10 -9 --------- Run | Yrd Mat Min Mat Distress Signals 1 | . 1 . . Communications Jammed . | . . . . Distress Signals . | . . . . Times Spotted 33 | . 12 8 13 Peak Tracking Total 8 | . 4 4 8 Tactical Retreats . | . . . . Traps | -11 -10 -10 -9 ------- Run | Yrd Mat Min Mat Traps Triggered 2 | . . . 2 Indirectly . | . . . . Trap Hack Attempts . | . . . . Triggered . | . . . . Disarmed . | . . . . Reprogrammed . | . . . . Reused . | . . . . Traps Extracted . | . . . . Installed . | . . . . Triggered . | . . . . Machines | -11 -10 -10 -9 ---------- Run | Yrd Mat Min Mat Machines Disabled 4 | . 3 . 1 Max in Single Turn 3 | . 3 . 1 Machines Repaired . | . . . . Machines Dismantled . | . . . . Machines Sabotaged . | . . . . Overloaded Fab Kills . | . . . . Hacking | -11 -10 -10 -9 --------- Run | Yrd Mat Min Mat Machines Accessed 2 | . 2 . . Terminals 2 | . 2 . . Fabricators . | . . . . Repair Stations . | . . . . Recycling Units . | . . . . Scanalyzers . | . . . . Garrison Access . | . . . . Total Hacks 5 | . 5 . . Successful 5 | . 5 . . Failed . | . . . . Catastrophic . | . . . . Database Lockouts . | . . . . Manual . | . . . . Terminals 5 | . 5 . . Fabricators . | . . . . Repair Stations . | . . . . Recycling Units . | . . . . Scanalyzers . | . . . . Garrison Access . | . . . . Terminal Hacks 5 | . 5 . . Record 2 | . 2 . . Branch Access Points 1 | . 1 . . Unreport Threat 1 | . 1 . . Hauler Manifests 1 | . 1 . . Fabricator Hacks . | . . . . Repair Station Hacks . | . . . . Recycling Unit Hacks . | . . . . Scanalyzer . | . . . . Garrison Access Hacks . | . . . . Unauthorized Hacks . | . . . . Terminals . | . . . . Fabricators . | . . . . Repair Stations . | . . . . Recycling Units . | . . . . Scanalyzers . | . . . . Garrison Access . | . . . . Data Cores Recovered . | . . . . Used . | . . . . Hacking Detections 1 | . 1 . . Full Trace Events . | . . . . Feedback Events . | . . . . Feedback Blocked . | . . . . Robot Schematics Acquired . | . . . . Robots Built . | . . . . Authchips . | . . . . Time . | . . . . Total Robot Build Rating . | . . . . Part Schematics Acquired . | . . . . Parts Built . | . . . . Authchips . | . . . . Time . | . . . . Total Part Build Rating . | . . . . Parts Repaired . | . . . . Time . | . . . . Parts Recycled . | . . . . Recycled Matter . | . . . . Retrieved Matter . | . . . . Retrieved Components . | . . . . Parts Scanalyzed . | . . . . Part Schematics Acquired . | . . . . Parts Damaged . | . . . . Bothacking | -11 -10 -10 -9 ------------ Run | Yrd Mat Min Mat Used RIF Installer . | . . . . Robots Hacked . | . . . . Non-combat . | . . . . Combat . | . . . . Robot Hacks Applied . | . . . . Relay Couplers Released . | . . . . Fabnet Peak Effective % . | . . . . Robots Rewired . | . . . . Allies Hacked . | . . . . Hacks Repelled . | . . . . Allies | -11 -10 -10 -9 -------- Run | Yrd Mat Min Mat Total Allies 1 | . . 1 . Largest Group 1 | . . 1 . Highest-Rated Group 31 | . . 31 . Highest-Rated Ally 31 | . . 31 . Total Orders . | . . . . Ally Attacks 13 | . . 13 . Total Damage 166 | . . 166 . Kills 4 | . . 4 . Allies Corrupted . | . . . . Allies Melted . | . . . . Intel | -11 -10 -10 -9 ------- Run | Yrd Mat Min Mat Robot Analysis Total . | . . . . Derelict Logs Recovered . | . . . . Drone Launches . | . . . . Drone Recoveries . | . . . . Exploration | -11 -10 -10 -9 ------------- Run | Yrd Mat Min Mat Turns Passed 1204 | 74 503 234 393 Spaces Moved 601 | 54 262 137 148 Core 34 | 25 . . 9 Treads 382 | 29 262 91 . Legs 138 | . . 3 135 Wheels . | . . . . Hover . | . . . . Flight 47 | . . 43 4 Fastest Speed 50 | 50 160 117 117 Average Speed 168 | 116 160 146 223 Slowest Speed 550 | 160 160 200 550 Overloaded Moves . | . . . . Propulsion Burnouts . | . . . . Robots Hopped . | . . . . Cave-ins Triggered . | . . . . Exploration Rate (%) 19 | 4 35 25 14 Regions Visited 3 Branch Regions 1 Pre-discovered Areas . | . . . . Known Exits Taken 1 | . 1 . . Unknown Exits Taken 2 | 1 . 1 . Scrap Searched . | . . . . Spaces Dug . | . . . . Terrain Destroyed 53 | . 32 20 1 Melee . | . . . . Projectile 1 | . . . 1 AOE 52 | . 32 20 . Terrain Rammed . | . . . . Walls Destroyed . | . . . . Machines Disabled . | . . . . Actions | -11 -10 -10 -9 --------- Run | Yrd Mat Min Mat Total 721 | 65 300 163 193 Wait 4 | . . . 4 Move 598 | 53 261 136 148 Hop . | . . . . Pick Up 29 | 7 5 7 10 Fast Attach . | . . . . Attach 23 | 5 4 7 7 Detach 8 | . 2 3 3 Swap 1 | . . . 1 Drop 10 | . 1 2 7 Fire 44 | . 27 8 9 Melee . | . . . . Ram 4 | . . . 4 Kick . | . . . . Crush . | . . . . Escape Stasis . | . . . . Rewire . | . . . . Trap . | . . . . Miscellaneous . | . . . . Route ------- -11/Scrapyard -10/Materials (discovered 2 exits: [*Mat] / *Min) -10/Mines -9/Materials (discovered 1 exit: [*Sto]) History --------- Turn | Location | Event 17 | -11/Scrapyard | Discovered new exit (range 16) 75 | -11/Scrapyard | Entered Materials 250 | -10/Materials | Identified exit to Mines 300 | -10/Materials | Build established: Mutant 393 | -10/Materials | Discovered new exit (range 12) 578 | -10/Materials | Entered Mines 579 | -10/Mines | Met a Derelict testing a Signal Generator 592 | -10/Mines | Found Signal Generator 760 | -10/Mines | Discovered new exit (range 15) 812 | -10/Mines | Entered Materials 812 | -9/Materials | Evolved 2 slots: Weapon x2 1119 | -9/Materials | Build established: Gunner 1181 | -9/Materials | Core integrity fell below 50% 1191 | -9/Materials | Discovered new exit (range 14) 1198 | -9/Materials | Core integrity fell below 20% 1205 | -9/Materials | Destroyed by Y-45 Defender with Beam Rifle Last Messages --------------- 01192_ K-01 Serf collects debris. 01193_ U-05 Engineer lays Concrete. 01193_ U-05 Engineer builds a Wall. 01193_ K-01 Serf collects debris. 01193_ U-05 Engineer lays Concrete. 01194_ Slammed into G-34 Mercenary. 01194_ U-05 Engineer builds a Wall. 01196_ K-01 Serf collects debris. 01197_ U-05 Engineer builds a Wall. 01198_ Slammed into U-05 Engineer. 01199_ ALERT: Construction progress impeded, dispatching reinforcements to local area. 01200_ K-01 Serf collects debris. 01201_ Slammed into U-05 Engineer. 01201_ U-05 Engineer lays Concrete. 01203_ K-01 Serf collects debris. 01203_ U-05 Engineer builds a Door. 01203_ U-05 Engineer builds a Wall. 01204_ U-05 Engineer lays Concrete. 01205_ Acquired 64 matter. Map ----- +----------------------------------------------------+ | ?????????????????????????????????????????????????? | | ?????????????????????????????????????????????????? | | ?????????????????????????????????????????????????? | | ?????????????????????????????????????????????????? | | ?????????????????????????????????????????????????? | | ?????????????????????????????????????????????????? | | ?????????????????????????????????????????????????? | | ???????????????????? ??????????????????????????? | | ???????????????????? ?????????????????????????? | | ??????????????????? ?????????????????????????? | | ?????????????????? ??????????????????????????? | | ?????????????????? ??????????????????????????? | | ??????????????????# #??????????????????????????? | | ??????????????????# #??????????????????????????? | | ??????????????????# #??????????????????????????? | | ??????????????????+ #??????????????????????????? | | ??????????????????# #??????????????????????????? | | ##????????????????# #??????????????????????????? | | ################## #??????????????????????????? | | ^ #??????????????????????????? | | ###????????????????????????? | | % *= #?????????####???????????? | | ##########+### ## #= ##?????# ###?????????? | | ##??????#[ * !% #??? ????????? | | #???????# # = g#####m < ????????? | | #???????# ![ u k[/g @ Y ! ????????? | | #???????# [[ iu #### ## #???????????? | | #???????# #???? #??????????????????? | | #???????# # #????????????????????????? | | #######?####### # #????????????????????????? | | # #???????#### ####????????????????????????? | | # = #??????????### ???????????????????????????? | | # #????????????#""???????????????????????????? | | + #????????????#""???????????????????????????? | | # [ !#????????????#"T???????????????????????????? | | # [|!#?????????????"????????????????????????????? | | # [!!#??????????????????????????????????????????? | | #######??????????????????????????????????????????? | | #????????????????????????????????????????????????? | | #????????????????????????????????????????????????? | | #????????????????????????????????????????????????? | | #????????????????????????????????????????????????? | | #????????????????????????????????????????????????? | | #######??????????????????????????????????????????? | | # #??????????????????????????????????????????? | | # #??????????????????????????????????????????? | | # """ #??????????????????????????????????????????? | | + """ #??????????????????????????????????????????? | | # """ #??????????????????????????????????????????? | | # """ #??????????????????????????????????????????? | +----------------------------------------------------+ Best States ------------- Heat Dissipation 28 Energy Generation 10 Energy Capacity 375 Matter Stores 300 Matter Capacity 300 Sight Range 16 Terrain Scan Range 14 Terrain Scan Density 110 Evasion (%) 50 Recoil Reduction 2 Item Schematics ----------------- None Robot Schematics ------------------ None Fabricated ------------ Nothing Alien Tech Used ----------------- None Achievements -------------- None Challenges ------------ None Game ------ Seed FactoryMicrowarpBattery Manual? 0 Play Time 00:17:27 Cumulative 23.8 hours Start 2024.07.06 @ 16:03:32 End 2024.07.06 @ 16:46:47 Sessions 1 Manual Loads 0 Difficulty Rogue Special Mode None Game No. 98 Rogue 92 Adventurer 0 Explorer 6 Win Type - Total 0 Types 0/0/0/0/0/0/0/0/0 Lore% 18 Gallery% 18 Achievement% 19 Wizard Run 0 Options --------- Layout 0 ASCII 0 Keyboard 0 Movement Arrows Keybinds 0 Fullscreen 2 Font 18/SmallcapsGlow Map View 76x50 Zoom Use 0% Tactical HUD 1 Map Filters NONE Filters NONE Steam 1 RUN: 5c7659e5-70f3-4891-adae-35f43d1d2c84